[Event "Titled Tuesday Blitz May 18 2021"]
[White "Seo, Jung Min"]
[Black "Madaminov, Mukhiddin"]
[WhiteFideId "1734687"]
[BlackFideId "14210703"]
[WhiteElo "2486"]
[BlackElo "1747"]
[Result "1-0"]
[Round "09"]
[TimeControl "180+1"]
[Date "2021.05.18"]
[WhiteClock "0:00:05"]
[BlackClock "0:00:03"]

1. e4 {[%clk 0:03:00]}  e6 {[%clk 0:02:59]} 2. d4 {[%clk 0:03:00]}  d5 {[%clk 0:02:59]} 3. e5 {[%clk 0:03:00]}  c5 {[%clk 0:02:59]} 4. c3 {[%clk 0:03:00]}  Nc6 {[%clk 0:03:00]} 5. Nf3 {[%clk 0:03:00]}  Qb6 {[%clk 0:03:00]} 6. a3 {[%clk 0:02:54]}  f6 {[%clk 0:03:00]} 7. exf6 {[%clk 0:02:49]}  Nxf6 {[%clk 0:03:01]} 8. Bd3 {[%clk 0:02:49]}  Bd6 {[%clk 0:02:58]} 9. O-O {[%clk 0:02:48]}  O-O {[%clk 0:02:58]} 10. dxc5 {[%clk 0:02:34]}  Bxc5 {[%clk 0:02:52]} 11. b4 {[%clk 0:02:34]}  Bd6 {[%clk 0:02:41]} 12. c4 {[%clk 0:02:31]}  dxc4 {[%clk 0:02:38]} 13. Bxc4 {[%clk 0:02:17]}  Ne5 {[%clk 0:02:38]} 14. Be2 {[%clk 0:02:11]}  a5 {[%clk 0:02:34]} 15. Be3 {[%clk 0:02:04]}  Qc7 {[%clk 0:02:33]} 16. Nbd2 {[%clk 0:02:04]}  axb4 {[%clk 0:02:27]} 17. axb4 {[%clk 0:02:03]}  Rxa1 {[%clk 0:02:19]} 18. Qxa1 {[%clk 0:02:03]}  Neg4 {[%clk 0:02:18]} 19. Bc5 {[%clk 0:01:46]}  Bxh2+ {[%clk 0:02:15]} 20. Kh1 {[%clk 0:01:46]}  Bd6 {[%clk 0:02:14]} 21. Bxd6 {[%clk 0:01:22]}  Qxd6 {[%clk 0:02:14]} 22. Qd4 {[%clk 0:01:22]}  Qc7 {[%clk 0:01:48]} 23. Nc4 {[%clk 0:01:09]}  Rd8 {[%clk 0:01:47]} 24. Qc5 {[%clk 0:01:08]}  Qxc5 {[%clk 0:01:28]} 25. bxc5 {[%clk 0:01:08]}  Rd5 {[%clk 0:01:29]} 26. Nb6 {[%clk 0:01:07]}  Rxc5 {[%clk 0:01:29]} 27. Kg1 {[%clk 0:00:42]}  Nd7 {[%clk 0:01:16]} 28. Nxc8 {[%clk 0:00:36]}  Rxc8 {[%clk 0:01:15]} 29. Nd4 {[%clk 0:00:37]}  Ngf6 {[%clk 0:00:37]} 30. Nxe6 {[%clk 0:00:37]}  Kf7 {[%clk 0:00:36]} 31. Nd4 {[%clk 0:00:34]}  Rc5 {[%clk 0:00:31]} 32. Rb1 {[%clk 0:00:33]}  b6 {[%clk 0:00:31]} 33. Bf3 {[%clk 0:00:32]}  g5 {[%clk 0:00:26]} 34. g3 {[%clk 0:00:32]}  h5 {[%clk 0:00:24]} 35. Kg2 {[%clk 0:00:31]}  g4 {[%clk 0:00:22]} 36. Be2 {[%clk 0:00:31]}  Ke7 {[%clk 0:00:21]} 37. f3 {[%clk 0:00:26]}  Rd5 {[%clk 0:00:20]} 38. Nb3 {[%clk 0:00:22]}  Re5 {[%clk 0:00:20]} 39. Kf2 {[%clk 0:00:20]}  Rf5 {[%clk 0:00:20]} 40. Kg2 {[%clk 0:00:19]}  Re5 {[%clk 0:00:18]} 41. Kf2 {[%clk 0:00:20]}  Kd6 {[%clk 0:00:19]} 42. fxg4 {[%clk 0:00:19]}  hxg4 {[%clk 0:00:20]} 43. Nd2 {[%clk 0:00:19]}  Ne4+ {[%clk 0:00:18]} 44. Nxe4+ {[%clk 0:00:19]}  Rxe4 {[%clk 0:00:19]} 45. Bb5 {[%clk 0:00:17]}  Ne5 {[%clk 0:00:19]} 46. Be2 {[%clk 0:00:17]}  Kc5 {[%clk 0:00:16]} 47. Rb5+ {[%clk 0:00:16]}  Kc6 {[%clk 0:00:16]} 48. Rb1 {[%clk 0:00:15]}  Rd4 {[%clk 0:00:16]} 49. Ke3 {[%clk 0:00:15]}  Rd8 {[%clk 0:00:10]} 50. Kf4 {[%clk 0:00:14]}  Nd3+ {[%clk 0:00:06]} 51. Kxg4 {[%clk 0:00:11]}  Rd4+ {[%clk 0:00:05]} 52. Kh3 {[%clk 0:00:10]}  Nf2+ {[%clk 0:00:04]} 53. Kg2 {[%clk 0:00:11]}  Ne4 {[%clk 0:00:04]} 54. Bf3 {[%clk 0:00:09]}  Kc5 {[%clk 0:00:04]} 55. Rc1+ {[%clk 0:00:05]}  Kd6 {[%clk 0:00:04]} 56. Bxe4 {[%clk 0:00:04]}  Rxe4 {[%clk 0:00:04]} 57. Kf3 {[%clk 0:00:04]}  Rd4 {[%clk 0:00:04]} 58. g4 {[%clk 0:00:05]}  b5 {[%clk 0:00:05]} 59. Kg3 {[%clk 0:00:05]}  b4 {[%clk 0:00:05]} 60. Kh4 {[%clk 0:00:05]}  Kd5 {[%clk 0:00:04]} 61. Kh5 {[%clk 0:00:06]}  Rd2 {[%clk 0:00:03]} 62. g5 {[%clk 0:00:06]}  Rh2+ {[%clk 0:00:04]} 63. Kg6 {[%clk 0:00:06]}  b3 {[%clk 0:00:04]} 64. Kg7 {[%clk 0:00:05]}  b2 {[%clk 0:00:05]} 65. Rb1 {[%clk 0:00:06]}  Rg2 {[%clk 0:00:05]} 66. g6 {[%clk 0:00:06]}  Ke6 {[%clk 0:00:06]} 67. Re1+ {[%clk 0:00:06]}  Kf5 {[%clk 0:00:05]} 68. Rf1+ {[%clk 0:00:06]}  Kg5 {[%clk 0:00:05]} 69. Rd1 {[%clk 0:00:04]}  Re2 {[%clk 0:00:02]} 70. Rd5+ {[%clk 0:00:04]}  Kf4 {[%clk 0:00:03]} 71. Rb5 {[%clk 0:00:04]}  Kg4 {[%clk 0:00:02]} 72. Kh7 {[%clk 0:00:04]}  Rh2+ {[%clk 0:00:01]} 73. Kg8 {[%clk 0:00:04]}  Kf4 {[%clk 0:00:01]} 74. g7 {[%clk 0:00:04]}  Ke3 {[%clk 0:00:02]} 75. Kf8 {[%clk 0:00:03]}  Rf2+ {[%clk 0:00:03]} 76. Ke7 {[%clk 0:00:03]}  Rg2 {[%clk 0:00:03]} 77. Kf7 {[%clk 0:00:04]}  Kd3 {[%clk 0:00:03]} 78. Rxb2 {[%clk 0:00:03]}  Rxb2 {[%clk 0:00:01]} 79. g8=Q {[%clk 0:00:03]}  Rf2+ {[%clk 0:00:02]} 80. Ke6 {[%clk 0:00:03]}  Re2+ {[%clk 0:00:03]} 81. Kd5 {[%clk 0:00:04]}  Kd2 {[%clk 0:00:02]} 82. Qg5+ {[%clk 0:00:04]}  Ke1 {[%clk 0:00:03]} 83. Kd4 {[%clk 0:00:04]}  Rf2 {[%clk 0:00:01]} 84. Qg1+ {[%clk 0:00:04]}  Ke2 {[%clk 0:00:01]} 85. Qg3 {[%clk 0:00:04]}  Rf3 {[%clk 0:00:01]} 86. Qg4 {[%clk 0:00:04]}  Kf2 {[%clk 0:00:02]} 87. Ke4 {[%clk 0:00:04]}  Re3+ {[%clk 0:00:02]} 88. Kf4 {[%clk 0:00:04]}  Re2 {[%clk 0:00:03]} 89. Qg3+ {[%clk 0:00:04]}  Kf1 {[%clk 0:00:04]} 90. Qh3+ {[%clk 0:00:04]}  Kf2 {[%clk 0:00:04]} 91. Qh1 {[%clk 0:00:04]}  Re1 {[%clk 0:00:03]} 92. Qh2+ {[%clk 0:00:04]}  Kf1 {[%clk 0:00:03]} 93. Kf3 {[%clk 0:00:05]}  Re3+ {[%clk 0:00:03]} 94. Kxe3 {[%clk 0:00:05]} 1-0


[Site "https://www.chess.com"]

[Event "Titled Tuesday Blitz May 18 2021"]
[White "Timmermans, Mark"]
[Black "Oparin, Grigoriy"]
[WhiteFideId "1026399"]
[BlackFideId "24125890"]
[WhiteElo "2460"]
[BlackElo "2628"]
[Result "0-1"]
[Round "09"]
[TimeControl "180+1"]
[Date "2021.05.18"]
[WhiteClock "0:00:09"]
[BlackClock "0:00:07"]

1. b4 {[%clk 0:02:54]}  c6 {[%clk 0:02:59]} 2. Bb2 {[%clk 0:02:54]}  a5 {[%clk 0:02:59]} 3. b5 {[%clk 0:02:54]}  cxb5 {[%clk 0:02:57]} 4. e4 {[%clk 0:02:54]}  b4 {[%clk 0:02:57]} 5. a3 {[%clk 0:02:55]}  bxa3 {[%clk 0:02:54]} 6. Nxa3 {[%clk 0:02:56]}  e6 {[%clk 0:02:53]} 7. Nb5 {[%clk 0:02:54]}  d6 {[%clk 0:02:50]} 8. d4 {[%clk 0:02:53]}  Bd7 {[%clk 0:02:48]} 9. Nf3 {[%clk 0:02:50]}  Na6 {[%clk 0:02:44]} 10. e5 {[%clk 0:02:39]}  dxe5 {[%clk 0:02:34]} 11. dxe5 {[%clk 0:02:40]}  Nh6 {[%clk 0:02:31]} 12. Ba3 {[%clk 0:02:24]}  Bxa3 {[%clk 0:02:26]} 13. Rxa3 {[%clk 0:02:25]}  O-O {[%clk 0:02:26]} 14. Nd6 {[%clk 0:02:02]}  Bc6 {[%clk 0:02:25]} 15. Be2 {[%clk 0:01:59]}  Nf5 {[%clk 0:02:09]} 16. Rd3 {[%clk 0:01:57]}  Nc5 {[%clk 0:02:01]} 17. Rd2 {[%clk 0:01:55]}  Nxd6 {[%clk 0:01:58]} 18. Rxd6 {[%clk 0:01:56]}  Qe7 {[%clk 0:01:51]} 19. Qd4 {[%clk 0:01:50]}  Rfc8 {[%clk 0:01:46]} 20. O-O {[%clk 0:01:42]}  a4 {[%clk 0:01:45]} 21. Ra1 {[%clk 0:01:34]}  h6 {[%clk 0:01:43]} 22. Nd2 {[%clk 0:01:10]}  Qg5 {[%clk 0:01:17]} 23. Bf3 {[%clk 0:00:58]}  Bxf3 {[%clk 0:01:15]} 24. Nxf3 {[%clk 0:00:59]}  Qf5 {[%clk 0:01:15]} 25. Qb2 {[%clk 0:00:56]}  Rd8 {[%clk 0:00:44]} 26. Rxd8+ {[%clk 0:00:52]}  Rxd8 {[%clk 0:00:43]} 27. h3 {[%clk 0:00:53]}  Qe4 {[%clk 0:00:42]} 28. Qc3 {[%clk 0:00:50]}  b6 {[%clk 0:00:35]} 29. Rb1 {[%clk 0:00:49]}  Qc6 {[%clk 0:00:34]} 30. Rb4 {[%clk 0:00:46]}  Ra8 {[%clk 0:00:33]} 31. Nd4 {[%clk 0:00:45]}  Qd5 {[%clk 0:00:32]} 32. Nb5 {[%clk 0:00:45]}  Qd1+ {[%clk 0:00:26]} 33. Kh2 {[%clk 0:00:46]}  Qe2 {[%clk 0:00:27]} 34. f4 {[%clk 0:00:46]}  Ne4 {[%clk 0:00:19]} 35. Qc6 {[%clk 0:00:46]}  Ra5 {[%clk 0:00:12]} 36. Rxe4 {[%clk 0:00:37]}  Qxb5 {[%clk 0:00:12]} 37. Qxb5 {[%clk 0:00:38]}  Rxb5 {[%clk 0:00:13]} 38. Rxa4 {[%clk 0:00:38]}  Rc5 {[%clk 0:00:13]} 39. Ra8+ {[%clk 0:00:37]}  Kh7 {[%clk 0:00:13]} 40. Rb8 {[%clk 0:00:37]}  Rxc2 {[%clk 0:00:12]} 41. Rxb6 {[%clk 0:00:37]}  g5 {[%clk 0:00:13]} 42. fxg5 {[%clk 0:00:21]}  hxg5 {[%clk 0:00:13]} 43. Rb5 {[%clk 0:00:21]}  Kg6 {[%clk 0:00:13]} 44. Kg3 {[%clk 0:00:20]}  Rc3+ {[%clk 0:00:11]} 45. Kg4 {[%clk 0:00:20]}  Rc4+ {[%clk 0:00:11]} 46. Kf3 {[%clk 0:00:21]}  g4+ {[%clk 0:00:11]} 47. hxg4 {[%clk 0:00:21]}  Kg5 {[%clk 0:00:11]} 48. Rb7 {[%clk 0:00:21]}  Rf4+ {[%clk 0:00:11]} 49. Ke3 {[%clk 0:00:21]}  Kxg4 {[%clk 0:00:10]} 50. Rb8 {[%clk 0:00:22]}  Rf1 {[%clk 0:00:08]} 51. Rf8 {[%clk 0:00:19]}  Kg5 {[%clk 0:00:08]} 52. Kd4 {[%clk 0:00:19]}  Kg6 {[%clk 0:00:07]} 53. Kc5 {[%clk 0:00:19]}  Kg7 {[%clk 0:00:07]} 54. Ra8 {[%clk 0:00:18]}  Rd1 {[%clk 0:00:07]} 55. Ra3 {[%clk 0:00:13]}  Rd5+ {[%clk 0:00:07]} 56. Kc4 {[%clk 0:00:13]}  Rxe5 {[%clk 0:00:08]} 57. Kd4 {[%clk 0:00:14]}  Rg5 {[%clk 0:00:08]} 58. g3 {[%clk 0:00:14]}  Rg4+ {[%clk 0:00:09]} 59. Ke5 {[%clk 0:00:14]}  Kg6 {[%clk 0:00:09]} 60. Rf3 {[%clk 0:00:14]}  Ra4 {[%clk 0:00:08]} 61. Rf6+ {[%clk 0:00:14]}  Kg7 {[%clk 0:00:08]} 62. Rf3 {[%clk 0:00:15]}  Ra5+ {[%clk 0:00:07]} 63. Ke4 {[%clk 0:00:16]}  Kg6 {[%clk 0:00:07]} 64. Rf1 {[%clk 0:00:16]}  f6 {[%clk 0:00:06]} 65. Rb1 {[%clk 0:00:16]}  Rf5 {[%clk 0:00:05]} 66. Rb6 {[%clk 0:00:15]}  e5 {[%clk 0:00:05]} 67. Ke3 {[%clk 0:00:13]}  Rf1 {[%clk 0:00:06]} 68. Rb8 {[%clk 0:00:13]}  Kf5 {[%clk 0:00:06]} 69. Rg8 {[%clk 0:00:13]}  Ra1 {[%clk 0:00:05]} 70. g4+ {[%clk 0:00:13]}  Ke6 {[%clk 0:00:06]} 71. g5 {[%clk 0:00:14]}  f5 {[%clk 0:00:05]} 72. Rg6+ {[%clk 0:00:14]}  Kd5 {[%clk 0:00:05]} 73. Rf6 {[%clk 0:00:15]}  f4+ {[%clk 0:00:05]} 74. Kf3 {[%clk 0:00:16]}  Rg1 {[%clk 0:00:06]} 75. g6 {[%clk 0:00:15]}  Rg3+ {[%clk 0:00:06]} 76. Kf2 {[%clk 0:00:16]}  Ke4 {[%clk 0:00:07]} 77. Kf1 {[%clk 0:00:11]}  f3 {[%clk 0:00:06]} 78. Kf2 {[%clk 0:00:11]}  Rg2+ {[%clk 0:00:06]} 79. Kf1 {[%clk 0:00:11]}  Ke3 {[%clk 0:00:07]} 80. Ra6 {[%clk 0:00:10]}  e4 {[%clk 0:00:07]} 81. Ra3+ {[%clk 0:00:10]}  Kf4 {[%clk 0:00:07]} 82. Ra6 {[%clk 0:00:11]}  Rg5 {[%clk 0:00:06]} 83. Kf2 {[%clk 0:00:10]}  e3+ {[%clk 0:00:07]} 84. Kf1 {[%clk 0:00:11]}  e2+ {[%clk 0:00:07]} 85. Ke1 {[%clk 0:00:09]}  Rg1+ {[%clk 0:00:07]} 0-1


[Site "https://www.chess.com"]

[Event "Titled Tuesday Blitz May 18 2021"]
[White "Vysochin, Spartak"]
[Black "Terry, Renato"]
[WhiteFideId "14103516"]
[BlackFideId "3803457"]
[WhiteElo "2388"]
[BlackElo "2581"]
[Result "1-0"]
[Round "09"]
[TimeControl "180+1"]
[Date "2021.05.18"]
[WhiteClock "0:00:18"]
[BlackClock "0:00:08"]

1. e4 {[%clk 0:03:00]}  e6 {[%clk 0:03:00]} 2. d4 {[%clk 0:03:00]}  d5 {[%clk 0:03:00]} 3. Nd2 {[%clk 0:02:47]}  Be7 {[%clk 0:03:00]} 4. Bd3 {[%clk 0:02:39]}  c5 {[%clk 0:02:59]} 5. dxc5 {[%clk 0:02:37]}  Nf6 {[%clk 0:02:59]} 6. Qe2 {[%clk 0:02:37]}  O-O {[%clk 0:02:57]} 7. Ngf3 {[%clk 0:02:37]}  a5 {[%clk 0:02:57]} 8. O-O {[%clk 0:02:22]}  Na6 {[%clk 0:02:53]} 9. exd5 {[%clk 0:02:12]}  exd5 {[%clk 0:02:39]} 10. Nb3 {[%clk 0:02:04]}  a4 {[%clk 0:02:37]} 11. Nbd4 {[%clk 0:02:04]}  Nxc5 {[%clk 0:02:38]} 12. Bg5 {[%clk 0:01:59]}  a3 {[%clk 0:02:22]} 13. b3 {[%clk 0:01:50]}  h6 {[%clk 0:02:06]} 14. Rfe1 {[%clk 0:01:41]}  Nxd3 {[%clk 0:01:11]} 15. cxd3 {[%clk 0:01:37]}  Bd6 {[%clk 0:01:09]} 16. Bh4 {[%clk 0:01:34]}  Bd7 {[%clk 0:01:09]} 17. Qd2 {[%clk 0:01:04]}  Rc8 {[%clk 0:00:52]} 18. Ne5 {[%clk 0:00:55]}  Be6 {[%clk 0:00:28]} 19. Re2 {[%clk 0:00:35]}  Re8 {[%clk 0:00:26]} 20. Rae1 {[%clk 0:00:34]}  Qb6 {[%clk 0:00:19]} 21. Bxf6 {[%clk 0:00:32]}  Qxd4 {[%clk 0:00:17]} 22. Nxf7 {[%clk 0:00:27]}  Bxh2+ {[%clk 0:00:16]} 23. Kxh2 {[%clk 0:00:21]}  Qxf6 {[%clk 0:00:16]} 24. Nd6 {[%clk 0:00:20]}  Rcd8 {[%clk 0:00:02]} 25. Nxe8 {[%clk 0:00:20]}  Rxe8 {[%clk 0:00:03]} 26. Kg1 {[%clk 0:00:20]}  Kf7 {[%clk 0:00:03]} 27. Qb4 {[%clk 0:00:20]}  Re7 {[%clk 0:00:01]} 28. Qxa3 {[%clk 0:00:19]}  h5 {[%clk 0:00:02]} 29. Qd6 {[%clk 0:00:19]}  h4 {[%clk 0:00:02]} 30. Rxe6 {[%clk 0:00:18]}  Rxe6 {[%clk 0:00:02]} 31. Qxd5 {[%clk 0:00:18]}  Ke7 {[%clk 0:00:02]} 32. Rxe6+ {[%clk 0:00:16]}  Qxe6 {[%clk 0:00:02]} 33. Qxe6+ {[%clk 0:00:16]}  Kxe6 {[%clk 0:00:03]} 34. Kh2 {[%clk 0:00:17]}  Ke5 {[%clk 0:00:02]} 35. Kh3 {[%clk 0:00:17]}  Kd4 {[%clk 0:00:03]} 36. Kxh4 {[%clk 0:00:17]}  Kxd3 {[%clk 0:00:04]} 37. f4 {[%clk 0:00:17]}  Kc3 {[%clk 0:00:05]} 38. g4 {[%clk 0:00:17]}  Kb2 {[%clk 0:00:06]} 39. f5 {[%clk 0:00:18]}  Kxa2 {[%clk 0:00:07]} 40. g5 {[%clk 0:00:18]}  Kxb3 {[%clk 0:00:08]} 41. f6 {[%clk 0:00:18]} 1-0


[Site "https://www.chess.com"]

[Event "Titled Tuesday Blitz May 18 2021"]
[White "dropstoneDP"]
[Black "Naroditsky, Daniel"]
[BlackFideId "2026961"]
[WhiteElo "2911"]
[BlackElo "2608"]
[Result "1/2-1/2"]
[Round "09"]
[TimeControl "180+1"]
[Date "2021.05.18"]
[WhiteClock "0:00:04"]
[BlackClock "0:00:06"]

1. e4 {[%clk 0:03:00]}  c6 {[%clk 0:02:55]} 2. d4 {[%clk 0:02:54]}  d5 {[%clk 0:02:55]} 3. e5 {[%clk 0:02:48]}  c5 {[%clk 0:02:55]} 4. c3 {[%clk 0:02:40]}  Nc6 {[%clk 0:02:55]} 5. a3 {[%clk 0:02:40]}  Bf5 {[%clk 0:02:48]} 6. Be3 {[%clk 0:02:38]}  e6 {[%clk 0:02:25]} 7. Nd2 {[%clk 0:02:36]}  Qb6 {[%clk 0:02:18]} 8. b4 {[%clk 0:02:30]}  cxd4 {[%clk 0:02:18]} 9. cxd4 {[%clk 0:02:30]}  a5 {[%clk 0:02:05]} 10. Qa4 {[%clk 0:01:50]}  Rc8 {[%clk 0:01:47]} 11. Bb5 {[%clk 0:01:44]}  axb4 {[%clk 0:01:19]} 12. axb4 {[%clk 0:01:45]}  Bc2 {[%clk 0:01:04]} 13. Qa5 {[%clk 0:01:44]}  Qxa5 {[%clk 0:01:02]} 14. bxa5 {[%clk 0:01:43]}  Bb4 {[%clk 0:01:01]} 15. Nf3 {[%clk 0:01:36]}  Ne7 {[%clk 0:00:57]} 16. O-O {[%clk 0:01:35]}  O-O {[%clk 0:00:54]} 17. a6 {[%clk 0:01:31]}  bxa6 {[%clk 0:00:50]} 18. Rxa6 {[%clk 0:01:29]}  Bxd2 {[%clk 0:00:39]} 19. Nxd2 {[%clk 0:01:14]}  Nb4 {[%clk 0:00:36]} 20. Ra7 {[%clk 0:01:11]}  Nf5 {[%clk 0:00:36]} 21. Nf3 {[%clk 0:00:58]}  Bd3 {[%clk 0:00:31]} 22. Bxd3 {[%clk 0:00:56]}  Nxd3 {[%clk 0:00:31]} 23. Rb1 {[%clk 0:00:54]}  Rc3 {[%clk 0:00:15]} 24. h3 {[%clk 0:00:52]}  h6 {[%clk 0:00:11]} 25. Rbb7 {[%clk 0:00:41]}  Nc1 {[%clk 0:00:05]} 26. Bd2 {[%clk 0:00:33]}  Rc2 {[%clk 0:00:04]} 27. Bxc1 {[%clk 0:00:25]}  Rxc1+ {[%clk 0:00:04]} 28. Kh2 {[%clk 0:00:25]}  Rc4 {[%clk 0:00:05]} 29. Rc7 {[%clk 0:00:23]}  Rxc7 {[%clk 0:00:04]} 30. Rxc7 {[%clk 0:00:24]}  Rb8 {[%clk 0:00:04]} 31. g4 {[%clk 0:00:24]}  Rb3 {[%clk 0:00:05]} 32. Kg2 {[%clk 0:00:20]}  Rxf3 {[%clk 0:00:04]} 33. Kxf3 {[%clk 0:00:21]}  Nxd4+ {[%clk 0:00:04]} 34. Ke3 {[%clk 0:00:21]}  Nb3 {[%clk 0:00:02]} 35. Kd3 {[%clk 0:00:19]}  Na5 {[%clk 0:00:01]} 36. f4 {[%clk 0:00:18]}  Nc4 {[%clk 0:00:02]} 37. Kd4 {[%clk 0:00:18]}  Kf8 {[%clk 0:00:02]} 38. h4 {[%clk 0:00:19]}  g6 {[%clk 0:00:02]} 39. Ra7 {[%clk 0:00:15]}  h5 {[%clk 0:00:03]} 40. gxh5 {[%clk 0:00:13]}  gxh5 {[%clk 0:00:03]} 41. Ra1 {[%clk 0:00:13]}  Nd2 {[%clk 0:00:04]} 42. Ke3 {[%clk 0:00:10]}  Nc4+ {[%clk 0:00:04]} 43. Kd3 {[%clk 0:00:11]}  Kg7 {[%clk 0:00:04]} 44. Rg1+ {[%clk 0:00:10]}  Kh7 {[%clk 0:00:04]} 45. Rg5 {[%clk 0:00:11]}  Kh6 {[%clk 0:00:05]} 46. Kd4 {[%clk 0:00:11]}  Nd2 {[%clk 0:00:05]} 47. Ke3 {[%clk 0:00:11]}  Ne4 {[%clk 0:00:04]} 48. Rg8 {[%clk 0:00:11]}  Kh7 {[%clk 0:00:03]} 49. Rg1 {[%clk 0:00:12]}  Kh6 {[%clk 0:00:03]} 50. Rg2 {[%clk 0:00:12]}  Kh7 {[%clk 0:00:04]} 51. f5 {[%clk 0:00:12]}  exf5 {[%clk 0:00:02]} 52. Kf4 {[%clk 0:00:13]}  d4 {[%clk 0:00:02]} 53. Kxf5 {[%clk 0:00:13]}  Nc5 {[%clk 0:00:02]} 54. Rc2 {[%clk 0:00:08]}  Ne6 {[%clk 0:00:02]} 55. Kf6 {[%clk 0:00:09]}  d3 {[%clk 0:00:02]} 56. Rd2 {[%clk 0:00:09]}  Nc5 {[%clk 0:00:02]} 57. Kxf7 {[%clk 0:00:09]}  Nd7 {[%clk 0:00:03]} 58. Ke6 {[%clk 0:00:05]}  Nc5+ {[%clk 0:00:03]} 59. Kd5 {[%clk 0:00:06]}  Nd7 {[%clk 0:00:03]} 60. Rxd3 {[%clk 0:00:06]}  Kg6 {[%clk 0:00:03]} 61. Rf3 {[%clk 0:00:06]}  Nb6+ {[%clk 0:00:04]} 62. Ke4 {[%clk 0:00:06]}  Nd7 {[%clk 0:00:04]} 63. Rf5 {[%clk 0:00:06]}  Nc5+ {[%clk 0:00:04]} 64. Kf4 {[%clk 0:00:02]}  Ne6+ {[%clk 0:00:05]} 65. Ke4 {[%clk 0:00:02]}  Nc5+ {[%clk 0:00:05]} 66. Kf4 {[%clk 0:00:03]}  Ne6+ {[%clk 0:00:05]} 67. Ke4 {[%clk 0:00:04]}  Nc5+ {[%clk 0:00:06]} 1/2-1/2


[Site "https://www.chess.com"]

[Event "Titled Tuesday Blitz May 18 2021"]
[White "Davtyan, Artur"]
[Black "Jobava, Baadur"]
[WhiteFideId "13308327"]
[BlackFideId "13601520"]
[WhiteElo "2311"]
[BlackElo "2748"]
[Result "1-0"]
[Round "10"]
[TimeControl "180+1"]
[Date "2021.05.18"]
[WhiteClock "0:00:24"]
[BlackClock "0:00:02"]

1. d4 {[%clk 0:03:00]}  Nf6 {[%clk 0:02:40]} 2. Nf3 {[%clk 0:03:00]}  b6 {[%clk 0:02:35]} 3. g3 {[%clk 0:02:58]}  Bb7 {[%clk 0:02:35]} 4. Bg2 {[%clk 0:02:59]}  e6 {[%clk 0:02:35]} 5. c4 {[%clk 0:02:55]}  Bb4+ {[%clk 0:02:34]} 6. Bd2 {[%clk 0:02:55]}  Bxd2+ {[%clk 0:02:34]} 7. Qxd2 {[%clk 0:02:55]}  O-O {[%clk 0:02:35]} 8. Nc3 {[%clk 0:02:54]}  Ne4 {[%clk 0:02:34]} 9. Qc2 {[%clk 0:02:54]}  Nxc3 {[%clk 0:02:33]} 10. Qxc3 {[%clk 0:02:43]}  Be4 {[%clk 0:02:26]} 11. O-O {[%clk 0:02:43]}  d5 {[%clk 0:02:20]} 12. Rac1 {[%clk 0:02:40]}  c6 {[%clk 0:02:18]} 13. Ne5 {[%clk 0:02:36]}  Bxg2 {[%clk 0:02:10]} 14. Kxg2 {[%clk 0:02:37]}  f6 {[%clk 0:01:51]} 15. Nd3 {[%clk 0:02:36]}  Na6 {[%clk 0:01:40]} 16. Nf4 {[%clk 0:02:29]}  Re8 {[%clk 0:01:39]} 17. cxd5 {[%clk 0:02:25]}  cxd5 {[%clk 0:01:38]} 18. a3 {[%clk 0:02:17]}  Qd7 {[%clk 0:01:31]} 19. Qc6 {[%clk 0:02:13]}  Rad8 {[%clk 0:01:25]} 20. Nd3 {[%clk 0:01:51]}  Nb8 {[%clk 0:01:17]} 21. Qxd7 {[%clk 0:01:51]}  Rxd7 {[%clk 0:01:17]} 22. Rc2 {[%clk 0:01:51]}  Kf7 {[%clk 0:01:16]} 23. Rfc1 {[%clk 0:01:51]}  Ke7 {[%clk 0:01:13]} 24. h4 {[%clk 0:01:44]}  Red8 {[%clk 0:01:01]} 25. b4 {[%clk 0:01:37]}  Rb7 {[%clk 0:00:59]} 26. b5 {[%clk 0:01:36]}  a6 {[%clk 0:00:52]} 27. a4 {[%clk 0:01:36]}  a5 {[%clk 0:00:49]} 28. h5 {[%clk 0:01:33]}  Nd7 {[%clk 0:00:47]} 29. Nf4 {[%clk 0:01:25]}  Nf8 {[%clk 0:00:44]} 30. Rc7+ {[%clk 0:01:22]}  Rxc7 {[%clk 0:00:43]} 31. Rxc7+ {[%clk 0:01:23]}  Rd7 {[%clk 0:00:43]} 32. Rc3 {[%clk 0:01:17]}  Rb7 {[%clk 0:00:26]} 33. Rc6 {[%clk 0:01:12]}  Kd7 {[%clk 0:00:20]} 34. Kf3 {[%clk 0:00:58]}  g5 {[%clk 0:00:20]} 35. hxg6 {[%clk 0:00:58]}  hxg6 {[%clk 0:00:20]} 36. g4 {[%clk 0:00:53]}  g5 {[%clk 0:00:21]} 37. Nh5 {[%clk 0:00:47]}  Ke7 {[%clk 0:00:20]} 38. e4 {[%clk 0:00:48]}  dxe4+ {[%clk 0:00:19]} 39. Kxe4 {[%clk 0:00:49]}  Nd7 {[%clk 0:00:17]} 40. f4 {[%clk 0:00:45]}  Rb8 {[%clk 0:00:13]} 41. f5 {[%clk 0:00:44]}  exf5+ {[%clk 0:00:12]} 42. Kxf5 {[%clk 0:00:45]}  Rd8 {[%clk 0:00:10]} 43. Nxf6 {[%clk 0:00:34]}  Nxf6 {[%clk 0:00:08]} 44. Re6+ {[%clk 0:00:35]}  Kf7 {[%clk 0:00:08]} 45. Rxf6+ {[%clk 0:00:35]}  Kg7 {[%clk 0:00:04]} 46. Ke5 {[%clk 0:00:35]}  Rc8 {[%clk 0:00:02]} 47. Rc6 {[%clk 0:00:35]}  Re8+ {[%clk 0:00:02]} 48. Re6 {[%clk 0:00:35]}  Rc8 {[%clk 0:00:02]} 49. Rxb6 {[%clk 0:00:34]}  Rc4 {[%clk 0:00:02]} 50. Ra6 {[%clk 0:00:23]}  Rxa4 {[%clk 0:00:02]} 51. Kd5 {[%clk 0:00:24]} 1-0


[Site "https://www.chess.com"]